fUSD/lending_fUSD_20240122
["ID","MTS","AMOUNT","RATE_DAILY","PERIOD"]
[312489524,1705927856325,-875.6,0.000458,5]
[312489525,1705927856335,-875.6,0.000458,5]
[312489526,1705927856344,-875.6,0.000458,5]
[312489527,1705927856354,-875.6,0.000458,5]
[312489528,1705927856363,-875.6,0.000458,5]
[312489529,1705927856373,-875.6,0.000458,5]
[312489530,1705927856382,-875.6,0.000458,5]
[312489531,1705927856392,-875.6,0.000458,5]
[312489532,1705927856401,-875.6,0.000458,5]
[312489533,1705927856411,-875.6,0.000458,5]
[312489534,1705927856421,-500.0,0.00045808,30]
[312489535,1705927856430,-500.0,0.00045808,21]
[312489536,1705927856440,-1000.0,0.00045808,30]
[312489537,1705927856449,-169.0,0.00045842,90]
[312489538,1705927856458,-491.18387796,0.0004588,100]
[312489539,1705927856468,-5247.38033712,0.000459,30]
[312489540,1705927856478,-6475.90070561,0.000459,30]
[312489541,1705927856487,-1288.65733476,0.000459,30]
[312489542,1705927856497,-178.51174383,0.000459,30]
[312489543,1705927856506,-1118.96671052,0.000459,30]
[312489544,1705927856515,-245.59155974,0.000459,30]
[312489545,1705927856525,-1000.0,0.000459,30]
[312489546,1705927856534,-4281.21865684,0.000459,30]
[312489547,1705927856543,-532.36064925,0.000459,30]
[312489548,1705927856553,-2193.29508806,0.000459,30]
[312489549,1705927856562,-309.93742851,0.000459,30]
[312489550,1705927856572,-1639.88199605,0.000459,30]
[312489551,1705927856581,-268.71253929,0.000459,30]
[312489552,1705927856591,-2051.7774613,0.000459,30]
[312489553,1705927856600,-408.90819182,0.000459,30]
[312489554,1705927856610,-152.88049549,0.000459,30]
[312489555,1705927856619,-177.72825194,0.000459,30]
[312489556,1705927856630,-428.76182482,0.000459,30]
[312489557,1705927856639,-150.0,0.000459,17]
[312489558,1705927856649,-472.8609255,0.000459,30]
[312489559,1705927856659,-152.25070786,0.00045914,29]
[312489560,1705927856668,-407.09323451,0.0004597,3]
[312489561,1705927856678,-556.58,0.00045975,2]
[312489562,1705927856688,-150.0,0.00045983,5]
[312489563,1705927856698,-150.0,0.00045983,5]
[312489564,1705927856708,-417.28323264,0.00045995,30]
[312489565,1705927856717,-50000.0,0.00046,36]
[312489566,1705927856727,-1000.0,0.00046,30]
[312489567,1705927856737,-300.0,0.00046,20]
[312489568,1705927856746,-20131.0859583,0.00046,13]
[312489569,1705927856756,-274.19,0.00046,30]
[312489570,1705927856766,-304.51,0.00046,30]
[312489571,1705927856775,-2112.89,0.00046,14]
[312489572,1705927856785,-500.0,0.00046,7]
[312489573,1705927856794,-432.30678068,0.00046,30]
[312489574,1705927856804,-300.0,0.00046,47]
[312489575,1705927856814,-25000.0,0.00046,2]
[312489576,1705927856823,-738.56,0.00046027,31]
[312489577,1705927856833,-954.77591526,0.00046027,14]
[312489578,1705927856843,-500.0,0.00046082,21]
[312489579,1705927856852,-1000.0,0.00046082,30]
[312489580,1705927856862,-1000.0,0.00046118,2]
[312489581,1705927856871,-400.0,0.00046164,120]
[312489582,1705927856881,-152.25070786,0.00046294,30]
[312489583,1705927856890,-500.0,0.00046356,30]
[312489584,1705927856900,-1000.0,0.00046356,30]
[312489585,1705927856910,-732.9660652,0.00046388,60]
[312489586,1705927856920,-150.0,0.0004641,5]
[312489587,1705927856930,-150.0,0.0004641,5]
[312489588,1705927856940,-350.0,0.00046438,120]
[312489589,1705927856952,-15192.281174,0.00046548,120]
[312489590,1705927856961,-72827.0,0.0004656,30]
[312489591,1705927856971,-1642.0,0.0004656,30]
[312489592,1705927856981,-609.0,0.0004656,30]
[312489593,1705927856990,-738.56,0.00046575,31]
[312489594,1705927857000,-172.18123988,0.00046575,120]
[312489595,1705927857012,-647.85201814,0.00046575,120]
[312489596,1705927857022,-1560.4,0.00046575,30]
[312489597,1705927857031,-500.0,0.0004663,21]
[312489598,1705927857041,-1000.0,0.0004663,30]
[312489599,1705927857051,-282.55669843,0.00046634,31]
[312489600,1705927857061,-152.25070786,0.00046673,32]
[312489601,1705927857071,-159.0,0.000467,30]
[312489602,1705927857081,-5200.0,0.000468,32]
[312489603,1705927857090,-2000.0,0.000468,15]
[312489604,1705927857100,-150.0,0.00046838,5]
[312489605,1705927857112,-150.0,0.00046838,5]
[312489606,1705927857122,-156955.4568095,0.000469,30]
[312489607,1705927857132,-300.0,0.000469,2]
[312489608,1705927857141,-390.0,0.000469,2]
[312489609,1705927857152,-507.0,0.000469,2]
[312489610,1705927857162,-659.0,0.000469,2]
[312489611,1705927857172,-856.0,0.000469,2]
[312489612,1705927857182,-1113.0,0.000469,2]
[312489613,1705927857192,-551.0,0.000469,2]
[312489614,1705927857202,-50002.0,0.000469,30]
[312489615,1705927857212,-306.89963906,0.000469,30]
[312489616,1705927857222,-1700.0,0.000469,17]
[312489617,1705927857232,-150.0,0.000469,18]
[312489618,1705927857441,-612.430878,0.000469,2]
[312489619,1705927857483,-500.0,0.00046904,30]
[312489620,1705927857493,-7000.0,0.00046933,2]
[312489621,1705927857503,-3130.46128711,0.0004698,30]
[312489622,1705927857512,-3135.0,0.0004698,30]
[312489623,1705927857521,-3135.0,0.0004699,30]
[312489624,1705927857530,-3000.0,0.0004699,35]
[312489625,1705927857540,-50000.0,0.00047,37]
[312489626,1705927857549,-155.39796897,0.00047,4]
[312489627,1705927857558,-2846.6347832,0.00047,14]
[312489628,1705927857568,-300.0,0.00047,25]
[312489629,1705927857577,-169.24158235,0.00047,4]
[312489630,1705927857586,-1012.11862042,0.00047,12]
[312489631,1705927857596,-150.0,0.00047,20]
[312489632,1705927857606,-2000.0,0.00047,30]
[312489633,1705927857615,-1000.0,0.00047,30]
[312489634,1705927857624,-548.85452097,0.00047,30]
[312489635,1705927857634,-374956.10216112,0.00047,15]
[312489636,1705927857643,-838.27802208,0.00047,30]
[312489637,1705927857653,-10008.790001,0.00047,5]
[312489638,1705927857662,-300.0,0.00047,48]
[312489639,1705927857672,-2000.0,0.00047,2]
[312489640,1705927857682,-1000.0,0.00047,51]
[312489641,1705927857692,-1000.0,0.00047,51]
[312489642,1705927857702,-1000.0,0.00047,51]
[312489643,1705927857712,-1000.0,0.00047,51]
[312489644,1705927857721,-1000.0,0.00047,51]
[312489645,1705927857731,-1000.0,0.00047,51]
[312489646,1705927857740,-1000.0,0.00047,51]
[312489647,1705927857749,-2135.2973178,0.00047,60]
[312489648,1705927857758,-462.28,0.00047,7]
[312489649,1705927857768,-4500.0,0.00047,5]
[312489650,1705927857777,-156.0,0.00047037,90]
[312489651,1705927857786,-1025.9518268,0.0004704,120]
[312489652,1705927857795,-72827.0,0.0004704,30]
[312489653,1705927857804,-1642.0,0.0004704,30]
[312489654,1705927857814,-609.0,0.0004704,30]
[312489655,1705927857823,-152.25070786,0.00047053,33]
[312489656,1705927857832,-1995.46,0.0004711,2]
[312489657,1705927857841,-738.56,0.00047123,31]
[312489658,1705927857851,-500.0,0.00047178,21]
[312489659,1705927857860,-1000.0,0.00047178,30]
[312489660,1705927857870,-150.0,0.00047265,5]
[312489661,1705927857879,-150.0,0.00047265,5]
[312489662,1705927857889,-400.0,0.00047397,120]
[312489663,1705927857898,-152.25070786,0.00047433,34]
[312489664,1705927857907,-858.64571465,0.00047435,7]
[312489665,1705927857916,-500.0,0.00047452,30]
[312489666,1705927857926,-680.0,0.0004747,120]
[312489667,1705927857935,-1000.0,0.00047488,2]
[312489668,1705927857945,-72827.0,0.0004752,30]
[312489669,1705927857954,-1642.0,0.0004752,30]
[312489670,1705927857963,-609.0,0.0004752,30]
[312489671,1705927857973,-10000.0,0.00047556,30]
[312489672,1705927857983,-500.0,0.0004759,5]
[312489673,1705927857992,-5068.01310518,0.000476,2]
[312489674,1705927858002,-1000.0,0.000476,30]
[312489675,1705927858011,-150.0,0.0004767,20]
[312489676,1705927858021,-738.56,0.00047671,31]
[312489677,1705927858030,-766.82122432,0.0004768,120]
[312489678,1705927858040,-150.0,0.00047693,5]
[312489679,1705927858049,-150.0,0.00047693,5]
[312489680,1705927858059,-859.36166567,0.000477,120]
[312489681,1705927858069,-500.0,0.00047726,21]
[312489682,1705927858078,-1000.0,0.00047726,30]
[312489683,1705927858087,-350.0,0.00047726,120]
[312489684,1705927858097,-159.0,0.000478,30]
[312489685,1705927858108,-152.25070786,0.00047813,36]
[312489686,1705927858118,-21321.37939997,0.000479,30]
[312489687,1705927858127,-7275.14512603,0.000479,30]
[312489688,1705927858137,-50000.0,0.000479,30]
[312489689,1705927858148,-1102.43489445,0.000479,30]
[312489690,1705927858160,-282.55669843,0.000479,36]
[312489691,1705927858170,-150.0,0.000479,19]
[312489692,1705927858180,-189.60339536,0.000479,9]
[312489693,1705927858193,-250.0,0.0004797,3]
[312489694,1705927858204,-65258.70298814,0.0004798,30]
[312489695,1705927858214,-500.0,0.00047989,5]
[312489696,1705927858224,-832.0,0.0004799,3]
[312489697,1705927858234,-1000.0,0.00047999,120]
[312489698,1705927858244,-50000.0,0.00048,38]
[312489699,1705927858253,-500.0,0.00048,30]
[312489700,1705927858262,-36518.93768118,0.00048,2]
[312489701,1705927858272,-150.0,0.00048,10]
[312489702,1705927858291,-23365.67010062,0.00048,15]
[312489703,1705927858300,-2000.0,0.00048,15]
[312489704,1705927858310,-1173.16228991,0.00048,4]
[312489705,1705927858319,-1000000.0,0.00048,30]
[312489706,1705927858329,-50000.0,0.00048,30]
[312489707,1705927858339,-1000.0,0.00048,30]
[312489708,1705927858348,-602.0,0.00048,24]
[312489709,1705927858359,-300.0,0.00048,49]
[312489710,1705927858368,-1000000.0,0.00048,30]
[312489711,1705927858378,-1332.0,0.00048,120]
[312489712,1705927858388,-299.93,0.00048,30]
[312489713,1705927858398,-72827.0,0.00048,30]
[312489714,1705927858407,-343.05773427,0.00048,30]
[312489715,1705927858417,-1642.0,0.00048,30]
[312489716,1705927858427,-1998.50887582,0.00048,30]
[312489717,1705927858437,-609.0,0.00048,30]
[312489718,1705927858447,-5000.0,0.00048,90]
[312489719,1705927858457,-6985.0,0.00048,30]
[312489720,1705927858467,-5330.38875149,0.00048,7]
[312489721,1705927858476,-350000.0,0.00048,7]
[312489722,1705927858486,-589.76762406,0.00048,33]
[312489723,1705927858495,-200.906049,0.00048,30]
[312489724,1705927858505,-5747.842695,0.00048,52]
[312489725,1705927858515,-44026.57,0.0004802,14]
[312489726,1705927858524,-537.63904529,0.00048037,5]
[312489727,1705927858534,-150.0,0.0004812,5]
[312489728,1705927858543,-150.0,0.0004812,5]
[312489729,1705927858553,-152.25070786,0.00048193,37]
[312489730,1705927858562,-738.56,0.00048219,31]
[312489731,1705927858572,-59997.04798334,0.00048223,15]
[312489732,1705927858581,-556.58,0.00048239,2]
[312489733,1705927858591,-500.0,0.00048274,21]
[312489734,1705927858601,-1000.0,0.00048274,30]
[312489735,1705927858611,-72827.0,0.0004848,30]
[312489736,1705927858621,-1642.0,0.0004848,30]
[312489737,1705927858630,-609.0,0.0004848,30]
[312489738,1705927858640,-25000.0,0.000485,7]
[312489739,1705927858649,-150.0,0.00048548,5]
[312489740,1705927858658,-182.82939439,0.00048548,5]
[312489741,1705927858668,-500.0,0.00048548,30]
[312489742,1705927858678,-1000.14888477,0.00048571,30]
[312489743,1705927858688,-152.25070786,0.00048573,39]
[312489744,1705927858697,-500.0,0.0004859,5]
[312489745,1705927858706,-400.0,0.0004863,120]
[312489746,1705927858715,-738.56,0.00048767,31]
[312489747,1705927858725,-15192.281174,0.00048767,120]
[312489748,1705927858735,-508.45,0.00048778,5]
[312489749,1705927858744,-190.89921247,0.000488,30]
[312489750,1705927858753,-1077.94587403,0.000488,120]
[312489751,1705927858763,-2055.023211,0.00048815,2]
[312489752,1705927858772,-500.0,0.00048822,21]
[312489753,1705927858782,-1000.0,0.00048822,30]
[312489754,1705927858792,-1050.94918431,0.00048858,2]
[312489755,1705927858802,-50000.0,0.0004887,25]
[312489756,1705927858812,-840.17031872,0.00048889,2]
[312489757,1705927858822,-150.0,0.000489,20]
[312489758,1705927858831,-159.0,0.000489,60]
[312489759,1705927858840,-152.25070786,0.00048953,40]
[312489760,1705927858851,-72827.0,0.0004896,30]
[312489761,1705927858861,-1642.0,0.0004896,30]
[312489762,1705927858870,-609.0,0.0004896,30]
[312489763,1705927858880,-150.0,0.00048975,5]
[312489764,1705927858889,-3144.07,0.0004898,30]
[312489765,1705927858899,-6136.51313931,0.0004899,14]
[312489766,1705927858908,-3135.0,0.0004899,30]
[312489767,1705927858917,-368.0,0.0004899,3]
[312489768,1705927858927,-83177.27932279,0.00048999,30]
[312489769,1705927858937,-1000.0,0.00048999,120]
[312489770,1705927858946,-50000.0,0.00049,39]
[312489771,1705927858955,-300.0,0.00049,27]
[312489772,1705927858965,-274.11,0.00049,10]
[312489773,1705927858974,-206.29240454,0.00049,30]
[312489774,1705927858983,-711.67480367,0.00049,30]
[312489775,1705927858993,-600.07792369,0.00049,30]
[312489776,1705927859002,-409576.46,0.00049,35]
[312489777,1705927859011,-14910.0,0.00049,30]
[312489778,1705927859021,-250.0,0.00049,10]
[312489779,1705927859030,-210001.27130963,0.00049,45]
[312489780,1705927859039,-1000.0,0.00049,30]
[312489781,1705927859049,-25000.0,0.00049,7]
[312489782,1705927859058,-2000.0,0.00049,2]
[312489783,1705927859067,-294.02058623,0.00049,90]
[312489784,1705927859076,-496740.57957684,0.00049005,7]
[312489785,1705927859086,-350.0,0.00049014,120]
[312489786,1705927859096,-42348.40253281,0.0004907,10]
[312489787,1705927859107,-228.70326686,0.00049096,30]
[312489788,1705927859117,-662.74531279,0.000493,30]
[312489789,1705927859127,-152.0,0.00049314,6]
[312489790,1705927859136,-162.44145171,0.00049314,5]
[312489791,1705927859146,-200.0,0.00049315,30]
[312489792,1705927859155,-221.0,0.00049315,30]
[312489793,1705927859165,-738.56,0.00049315,31]
[312489794,1705927859174,-950.0,0.00049315,7]
[312489795,1705927859185,-152.25070786,0.00049332,42]
[312489796,1705927859195,-151.0,0.0004934,2]
[312489797,1705927859205,-500.0,0.0004937,21]
[312489798,1705927859214,-1000.0,0.0004937,90]
[312489799,1705927859224,-150.0,0.00049402,5]
[312489800,1705927859234,-72827.0,0.0004944,30]
[312489801,1705927859243,-1642.0,0.0004944,30]
[312489802,1705927859253,-609.0,0.0004944,30]
[312489803,1705927859263,-50000.0,0.0004945,35]
[312489804,1705927859273,-3000.0,0.0004949,47]
[312489805,1705927859283,-618.68946434,0.00049501,2]
[312489806,1705927859293,-155.2315466,0.0004954,30]
[312489807,1705927859302,-748.3774425,0.00049589,7]
[312489808,1705927859311,-481.0,0.00049589,3]
[312489809,1705927859320,-186.0,0.00049589,10]
[312489810,1705927859330,-205.0,0.00049593,31]
[312489811,1705927859340,-152.25070786,0.00049712,43]
[312489812,1705927859350,-2000.0,0.000498,20]
[312489813,1705927859359,-300.5640632,0.000498,120]
[312489814,1705927859369,-150.0,0.0004983,5]
[312489815,1705927859378,-738.56,0.00049863,31]
[312489816,1705927859388,-400.0,0.00049863,120]
[312489817,1705927859398,-250.0,0.0004987,3]
[312489818,1705927859407,-201.01827289,0.0004987,3]
[312489819,1705927859417,-600.00939018,0.000499,30]
[312489820,1705927859427,-388.91332398,0.000499,120]
[312489821,1705927859437,-1700.0,0.000499,18]
[312489822,1705927859446,-150.0,0.000499,21]
[312489823,1705927859456,-213.99719674,0.00049915,7]
[312489824,1705927859465,-1507.08790129,0.00049917,60]
[312489825,1705927859475,-500.0,0.00049918,21]
[312489826,1705927859484,-1000.0,0.00049918,90]
[312489827,1705927859493,-1543.56458387,0.00049929,60]
[312489828,1705927859503,-432.53167013,0.0004993,60]
[312489829,1705927859513,-487.08506712,0.00049947,60]
[312489830,1705927859522,-50000.0,0.0004995,38]
[312489831,1705927859532,-435.54988445,0.0004998,3]
[312489832,1705927859541,-355.80330307,0.0004998,3]
[312489833,1705927859551,-1000.0,0.0004998,120]
[312489834,1705927859560,-1000.0,0.0004998,120]
[312489835,1705927859569,-1000.0,0.0004998,120]
[312489836,1705927859578,-1000.0,0.0004998,120]
[312489837,1705927859588,-1000.0,0.0004998,120]
[312489838,1705927859597,-1000.0,0.0004998,120]
[312489839,1705927859606,-1000.0,0.0004998,120]
[312489840,1705927859615,-1000.0,0.0004998,120]
[312489841,1705927859625,-1000.0,0.0004998,120]
[312489842,1705927859634,-1000.0,0.0004998,120]
[312489843,1705927859643,-321.2,0.0004998,120]
[312489844,1705927859653,-196.25121632,0.00049989,60]
[312489845,1705927859662,-1303.84035844,0.0004999,120]
[312489846,1705927859671,-483.0,0.0004999,3]
[312489847,1705927859681,-1560.93920387,0.00049996,60]
[312489848,1705927859757,-132999.999999,0.00049997,30]
[312489849,1705927859765,-750.87591044,0.00049999,60]
[312489850,1705927859775,-1000.0,0.00049999,120]
[312489851,1705927859784,-100000.0,0.0005,40]
[312489852,1705927859792,-336.12108895,0.0005,4]
[312489853,1705927859801,-155.0,0.0005,4]
[312489854,1705927859810,-3688.99483473,0.0005,4]
[312489855,1705927859819,-305.33349401,0.0005,2]
[312489856,1705927859829,-2532.83030618,0.0005,5]
[312489857,1705927859837,-1107.54302054,0.0005,2]
[312489858,1705927859846,-200.0,0.0005,2]
[312489859,1705927859855,-560.0,0.0005,4]
[312489860,1705927859864,-231.90132646,0.0005,10]
[312489861,1705927859873,-178.81,0.0005,2]
[312489862,1705927859882,-3896.86094117,0.0005,2]
[312489863,1705927859891,-228.50139661,0.0005,4]
[312489864,1705927859901,-534713.43,0.0005,4]
[312489865,1705927859910,-214.60514178,0.0005,4]
[312489866,1705927859919,-454391.70354015,0.0005,15]
[312489867,1705927859928,-155.0,0.0005,2]
[312489868,1705927859937,-26803.84850222,0.0005,7]
[312489869,1705927859946,-155.0,0.0005,4]
[312489870,1705927859955,-2087.0,0.0005,21]
[312489871,1705927859965,-34025.88313447,0.0005,15]
[312489872,1705927859974,-695.74102696,0.0005,10]
[312489873,1705927859983,-43271.17975938,0.0005,30]
[312489874,1705927859992,-300.0,0.0005,51]
[312489875,1705927860001,-204.94416965,0.0005,30]
[312489876,1705927860010,-725.96421338,0.0005,30]
[312489877,1705927860019,-341.33653501,0.0005,30]
[312489878,1705927860028,-1000.0,0.0005,31]
[312489879,1705927860037,-1049.89,0.0005,30]
[312489880,1705927860046,-1006.35,0.0005,30]
[312489881,1705927860055,-200000.0,0.0005,30]
[312489882,1705927860064,-59961.97602473,0.0005,30]
[312489883,1705927860073,-2000.0,0.0005,30]
[312489884,1705927860082,-1000.0,0.0005,30]
[312489885,1705927860090,-9907.01473464,0.0005,10]
[312489886,1705927860099,-222.7536818,0.0005,30]
[312489887,1705927860109,-262.0,0.0005,30]
[312489888,1705927860117,-181.57160013,0.0005,30]
[312489889,1705927860126,-2028.05956,0.0005,30]
[312489890,1705927860134,-154.35574593,0.0005,20]
[312489891,1705927860142,-6629.98974996,0.0005,30]
[312489892,1705927860150,-67984.0,0.0005,20]
[312489893,1705927860158,-537.61400016,0.0005,120]
[312489894,1705927860166,-300.0,0.0005,120]
[312489895,1705927860176,-1163.1457547,0.0005,120]
[312489896,1705927860186,-603.19754397,0.0005,120]
[312489897,1705927860195,-287.65430634,0.0005,120]
[312489898,1705927860205,-1101.05475408,0.0005,7]
[312489899,1705927860214,-766.988174,0.0005,120]
[312489900,1705927860224,-5254.30464273,0.0005,120]
[312489901,1705927860233,-300.0,0.0005,27]
[312489902,1705927860242,-139841.0,0.0005,8]
[312489903,1705927860252,-200.0,0.0005,30]
[312489904,1705927860261,-159.0,0.0005,60]
[312489905,1705927860271,-150.0,0.0005,27]
[312489906,1705927860280,-450.0,0.0005002,10]
[312489907,1705927860289,-152.25070786,0.00050092,44]
[312489908,1705927860298,-496.0,0.00050137,4]
[312489909,1705927860307,-191.0,0.00050137,10]
[312489910,1705927860317,-302.0,0.0005017,4]
[312489911,1705927860326,-200.00414812,0.000502,30]
[312489912,1705927860335,-150.0,0.00050257,6]
[312489913,1705927860344,-350.0,0.00050301,120]
[312489914,1705927860353,-738.56,0.0005041,31]
[312489915,1705927860362,-500.0,0.00050466,21]
[312489916,1705927860371,-1000.0,0.00050466,90]
[312489917,1705927860380,-152.25070786,0.00050472,46]
[312489918,1705927860389,-556.58,0.00050502,2]
[312489919,1705927860398,-800.0,0.00050684,45]
[312489920,1705927860407,-800.0,0.00050684,45]
[312489921,1705927860417,-800.0,0.00050684,45]
[312489922,1705927860427,-800.0,0.00050684,45]
[312489923,1705927860436,-800.0,0.00050684,45]
[312489924,1705927860445,-800.0,0.00050684,45]
[312489925,1705927860455,-800.0,0.00050684,45]
[312489926,1705927860464,-800.0,0.00050684,45]
[312489927,1705927860473,-800.0,0.00050684,45]
[312489928,1705927860482,-800.0,0.00050684,45]
[312489929,1705927860491,-800.0,0.00050684,45]
[312489930,1705927860500,-800.0,0.00050684,45]
[312489931,1705927860508,-800.0,0.00050684,45]
[312489932,1705927860517,-800.0,0.00050684,45]
[312489933,1705927860527,-800.0,0.00050684,45]
[312489934,1705927860536,-800.0,0.00050684,45]
[312489935,1705927860545,-800.0,0.00050684,45]
[312489936,1705927860553,-800.0,0.00050684,45]
[312489937,1705927860562,-551.69519658,0.00050684,45]
[312489938,1705927860572,-150.0,0.00050685,6]
[312489939,1705927860581,-1313.17,0.00050685,65]
[312489940,1705927860590,-510.0,0.00050685,5]
[312489941,1705927860600,-197.0,0.00050685,10]
[312489942,1705927860610,-152.25070786,0.00050852,47]
[312489943,1705927860619,-150.0,0.000509,22]
[312489944,1705927860630,-738.56,0.00050958,31]
[312489945,1705927860640,-450.0,0.00050971,10]
[312489946,1705927860649,-1000.0,0.00050999,120]
[312489947,1705927860657,-100000.0,0.00051,41]
[312489948,1705927860666,-2061.0,0.00051,10]
[312489949,1705927860677,-300.0,0.00051,52]
[312489950,1705927860685,-300.0,0.00051,29]
[312489951,1705927860694,-23374.18,0.00051,30]
[312489952,1705927860703,-1122.78609936,0.00051,30]
[312489953,1705927860712,-206.58,0.00051,30]
[312489954,1705927860721,-300.0,0.00051,29]
[312489955,1705927860731,-150.0,0.00051,29]
[312489956,1705927860740,-604.0,0.00051013,7]
[312489957,1705927860749,-157.95963758,0.00051014,21]
[312489958,1705927860758,-1000.0,0.00051014,90]
[312489959,1705927860768,-537.63904529,0.00051037,14]
[312489960,1705927860778,-5000.0,0.00051041,4]
[312489961,1705927860787,-5000.0,0.00051041,4]
[312489962,1705927860795,-400.0,0.00051096,120]
[312489963,1705927860805,-159.0,0.000511,60]
[312489964,1705927860815,-150.0,0.00051112,7]
[312489965,1705927860824,-816.85,0.00051192,2]
[312489966,1705927860835,-152.25070786,0.00051232,49]
[312489967,1705927860843,-525.0,0.00051233,6]
[312489968,1705927860852,-203.0,0.00051233,11]
[312489969,1705927860861,-1190.957,0.00051267,120]
[312489970,1705927860870,-1190.958,0.00051267,120]
[312489971,1705927860878,-1853.085,0.00051267,120]
[312489972,1705927860887,-1853.085,0.00051267,120]
[312489973,1705927860896,-1190.958,0.00051267,120]
[312489974,1705927860905,-1853.085,0.00051267,120]
[312489975,1705927860914,-1190.958,0.00051267,120]
[312489976,1705927860923,-1853.085,0.00051267,120]
[312489977,1705927860932,-1190.958,0.00051267,120]
[312489978,1705927860941,-1853.085,0.00051267,120]
[312489979,1705927860950,-1242.88338387,0.000513,120]
[312489980,1705927860960,-17436.0,0.000513,120]
[312489981,1705927860970,-478.04376157,0.000515,2]
[312489982,1705927860980,-738.56,0.00051506,31]
[312489983,1705927860990,-150.0,0.0005154,7]
[312489984,1705927860999,-732.85041358,0.00051562,90]
[312489985,1705927861008,-350.0,0.00051589,120]
[312489986,1705927861018,-152.25070786,0.00051612,50]
[312489987,1705927861027,-3559.0,0.000517,117]
[312489988,1705927861036,-539.0,0.00051781,8]
[312489989,1705927861045,-208.0,0.00051781,7]
[312489990,1705927861054,-166.99392,0.0005187,4]
[312489991,1705927861063,-268.96,0.000519,50]
[312489992,1705927861072,-150.0,0.000519,22]
[312489993,1705927861082,-450.0,0.00051922,10]
[312489994,1705927861091,-150.0,0.00051967,7]
[312489995,1705927861100,-152.25070786,0.00051991,52]
[312489996,1705927861112,-1000.0,0.00051999,120]
[312489997,1705927861121,-100000.0,0.00052,42]
[312489998,1705927861131,-25000.0,0.00052,7]
[312489999,1705927861141,-15129.29707609,0.00052,2]
[312490000,1705927861151,-500.21592521,0.00052,10]
[312490001,1705927861162,-1544.42966215,0.00052,10]
[312490002,1705927861176,-48665.79895276,0.00052,30]
[312490003,1705927861189,-300.0,0.00052,53]
[312490004,1705927861200,-1000.0,0.00052,30]
[312490005,1705927861210,-144926.53255816,0.00052,21]
[312490006,1705927861221,-389.0,0.00052,120]
[312490007,1705927861230,-300.0,0.00052,30]
[312490008,1705927861238,-175.92118501,0.00052,2]
[312490009,1705927861248,-150.0,0.00052,30]
[312490010,1705927861257,-738.56,0.00052054,31]
[312490011,1705927861266,-3798.070293,0.00052054,120]
[312490012,1705927861276,-159.0,0.000522,120]
[312490013,1705927861285,-1208.0,0.00052304,30]
[312490014,1705927861295,-554.0,0.00052329,9]
[312490015,1705927861304,-214.0,0.00052329,7]
[312490016,1705927861313,-400.0,0.00052329,120]
[312490017,1705927861323,-152.25070786,0.00052371,53]
[312490018,1705927861332,-150.0,0.00052394,8]
[312490019,1705927861342,-1000.0,0.000526,2]
[312490020,1705927861352,-738.56,0.00052602,31]
[312490021,1705927861361,-5152.96497,0.00052602,30]
[312490022,1705927861370,-50000.0,0.0005275,45]
[312490023,1705927861380,-152.25070786,0.00052751,55]